bitfinex/quotes_SOLUSD_20240605
["timestamp","ask_amount","ask_price","bid_price","bid_amount"]
[1717598966622,2.1376,173.09,173.05,2.138]
[1717598966926,2.1374,173.1,173.06,2.1378]
[1717598967615,2.1374,173.1,173.07,2.1378]
[1717598967928,2.1374,173.11,173.07,2.1378]
[1717598968927,2.1374,173.11,173.08,2.1377]
[1717598969130,2.1373,173.12,173.08,2.1377]
[1717598969809,2.1373,173.11,173.08,2.1377]
[1717598970005,2.1373,173.12,173.08,2.1377]
[1717598970601,2.1373,173.11,173.08,2.1377]
[1717598971026,2.1373,173.11,173.05,75.6903]
[1717598971027,2.1371,173.13,173.09,2.1375]
[1717598971226,2.1371,173.13,173.1,2.1374]
[1717598971406,2.1374,173.11,173.08,45.0]
[1717598971606,2.1372,173.12,173.08,45.0]
[1717598971829,2.1372,173.12,173.08,2.1376]
[1717598972313,2.1373,173.11,173.07,47.1377]
[1717598972628,0.5327606,173.13,173.08,2.1377]
[1717598972830,2.1372,173.12,173.08,2.1377]
[1717598973130,2.1371,173.13,173.08,2.1377]
[1717598973428,2.1376,173.1,173.06,2.1379]
[1717598973611,2.1376,173.1,173.05,2.138]
[1717598973803,4.4445,173.12,173.06,2.1379]
[1717598973804,2.1374,173.11,173.06,2.1379]
[1717598974234,2.1375,173.1,173.05,2.138]
[1717598974636,2.1375,173.1,173.06,2.1379]
[1717598975005,0.34,173.12,173.01,4.6769]
[1717598975326,0.34,173.12,173.03,2.1382]
[1717598975327,2.1378,173.07,173.03,2.1382]
[1717598975709,0.17,173.11,173.04,2.1381]
[1717598975710,2.1377,173.08,173.04,2.1381]
[1717598975917,2.1376,173.09,173.04,2.1381]
[1717598976617,2.1376,173.09,173.05,2.138]
[1717598976835,2.1377,173.08,173.04,2.1381]
[1717598977333,2.1376,173.09,173.04,2.1381]
[1717598977927,2.1378,173.08,173.03,47.1382]
[1717598978236,2.1378,173.08,173.04,2.1382]
[1717598978618,2.1376,173.09,173.04,2.1382]
[1717598978816,2.1377,173.08,173.04,2.1382]
[1717598980014,2.1376,173.09,173.04,2.1382]
[1717598981121,2.1376,173.09,173.05,2.1381]
[1717598981322,2.1375,173.1,173.05,2.1381]
[1717598981535,2.1375,173.1,173.06,2.1379]
[1717598982433,2.1375,173.1,173.04,49.2763]
[1717598982624,2.1376,173.09,173.05,2.138]
[1717598983032,2.1377,173.08,173.04,47.1381]
[1717598983234,2.1376,173.09,173.05,2.1381]
[1717598983825,2.1377,173.08,173.04,2.1381]
[1717598984122,2.1376,173.09,173.04,2.1381]
[1717598984316,2.1376,173.09,173.05,2.138]
[1717598987035,2.1374,173.11,173.04,4.2764]
[1717598987226,2.1374,173.11,173.07,2.1378]
[1717598987422,2.1374,173.11,173.06,2.1379]
[1717598987628,2.1374,173.1,173.06,2.1379]
[1717598988158,2.1374,173.11,173.06,2.1379]
[1717598988635,2.1374,173.11,173.07,2.1378]
[1717598989948,8.5513,173.08,173.01,0.4]
[1717598990135,2.1381,173.05,173.01,2.5385]
[1717598990344,2.138,173.06,173.02,2.1384]
[1717598990521,2.138,173.06,173.02,2.1383]
[1717598991045,8.5507,173.09,173.03,2.1382]
[1717598991249,2.1379,173.07,173.03,2.1382]
[1717598991846,2.1379,173.07,173.04,2.1382]
[1717598992056,2.1379,173.07,173.03,2.1382]
[1717598992237,2.138,173.06,173.03,2.1382]
[1717598992551,2.1379,173.07,173.03,2.1382]
[1717598993125,2.1379,173.06,173.01,45.4]
[1717598993338,2.1379,173.07,173.03,2.1383]
[1717598993625,2.1378,173.08,173.04,2.1381]
[1717598993929,2.1378,173.07,173.04,47.1381]
[1717598994150,2.1378,173.07,173.05,45.0]
[1717598994332,2.1378,173.07,173.03,2.1382]
[1717598995153,2.138,173.06,173.02,2.1384]
[1717598995326,2.138,173.06,173.03,2.1383]
[1717598995753,2.138,173.06,173.02,2.1384]
[1717598996329,2.1379,173.07,173.03,2.1383]
[1717598997027,2.138,173.06,173.03,2.1383]
[1717598997352,2.138,173.06,173.02,2.1384]
[1717598998527,2.1381,173.05,173.02,2.1384]
[1717598998732,2.1381,173.05,173.01,47.5385]
[1717598998949,2.1381,173.05,173.01,45.4]
[1717598999341,2.1381,173.05,173.01,47.5385]
[1717598999861,2.138,173.06,173.02,2.1384]
[1717599000025,4.2757,173.07,173.02,2.1384]
[1717599000222,2.138,173.06,173.02,2.1384]
[1717599000451,2.138,173.06,173.03,2.1383]
[1717599001250,2.1381,173.05,173.02,2.1384]
[1717599001454,2.138,173.06,173.02,2.1384]
[1717599003449,2.1383,173.04,173.01,0.4]
[1717599003655,2.1383,173.04,173.01,2.5385]
[1717599003955,2.1383,173.04,173.01,0.4]
[1717599004951,4.4459,173.06,173.01,0.4]
[1717599005151,2.1384,173.02,173.01,0.4]
[1717599005837,2.1384,173.03,173.01,0.4]
[1717599006049,6.365,173.04,173.01,0.4]
[1717599006240,2.1382,173.04,173.01,0.4]
[1717599006432,2.1381,173.05,173.01,2.5386]
[1717599006653,2.1381,173.05,173.01,47.5386]
[1717599007045,2.1381,173.05,173.02,47.1384]
[1717599007244,2.1381,173.05,173.02,2.1384]
[1717599007452,2.1381,173.05,173.01,0.4]
[1717599007663,2.1381,173.05,173.01,2.5385]
[1717599008839,2.1382,173.04,173.01,2.5385]
[1717599009737,2.1381,173.05,173.01,2.5385]
[1717599009940,10.6892,173.07,173.01,2.5385]
[1717599010260,2.1382,173.04,173.01,2.5385]
[1717599010634,2.1381,173.05,173.01,2.5385]
[1717599010840,2.1382,173.04,173.01,0.4]
[1717599011041,2.1383,173.03,173.01,0.4]
[1717599011243,2.1383,173.04,173.01,0.4]
[1717599011540,2.1383,173.03,173.01,0.4]
[1717599012560,2.1382,173.04,173.01,0.4]
[1717599014240,2.1382,173.04,173.01,2.5385]
[1717599014661,4.2759,173.07,173.01,0.4]
[1717599014956,2.1382,173.05,173.01,2.5385]
[1717599015153,2.1382,173.04,173.01,2.5385]
[1717599015551,2.1382,173.04,173.01,0.4]
[1717599015748,2.1381,173.05,173.01,0.4]
[1717599017240,2.1381,173.05,173.01,2.5386]
[1717599017460,2.1381,173.05,173.01,0.4]
[1717599017760,2.1382,173.04,173.01,0.4]
[1717599018970,2.1381,173.05,173.01,0.4]
[1717599019465,2.138,173.06,173.01,2.5385]
[1717599019664,2.1379,173.07,173.02,2.1384]
[1717599019871,2.1378,173.08,173.02,2.1384]
[1717599021263,2.1376,173.09,173.03,2.1383]
[1717599022670,4.2751,173.1,173.02,45.0]
[1717599022671,2.1377,173.08,173.02,47.1384]
[1717599023047,2.1377,173.08,173.03,45.0]
[1717599023279,2.1377,173.08,173.02,2.1384]
[1717599023982,2.1378,173.07,173.02,2.1384]
[1717599024185,2.1378,173.08,173.02,2.1384]
[1717599025982,2.1378,173.07,173.02,2.1384]
[1717599026474,2.1378,173.08,173.02,2.1384]
[1717599028475,4.2754,173.09,173.01,45.4]
[1717599028681,2.3078,173.08,173.02,2.1384]
[1717599029883,2.1378,173.07,173.02,2.1384]
[1717599030572,15.8075,173.07,173.01,0.4]
[1717599030763,2.1382,173.05,173.01,0.4]
[1717599030961,0.34,173.06,173.01,0.4]
[1717599031168,2.1381,173.05,173.01,0.4]
[1717599031669,2.478,173.06,173.01,0.4]
[1717599032078,2.478,173.06,173.01,2.5386]
[1717599032457,2.1381,173.05,173.01,0.4]
[1717599032977,2.478,173.06,173.01,0.4]
[1717599033280,2.1381,173.05,173.01,0.4]
[1717599033655,2.478,173.06,173.01,2.5386]
[1717599034373,2.478,173.06,173.01,0.4]
[1717599034760,2.308,173.06,173.01,2.5385]
[1717599034956,6.4128,173.1,173.02,2.1384]
[1717599034957,2.1379,173.07,173.02,2.1384]
[1717599035465,2.1379,173.06,173.01,2.5385]
[1717599035680,2.1381,173.05,173.01,0.4]
[1717599035877,2.138,173.06,173.01,0.4]
[1717599036460,2.138,173.06,173.01,2.5385]
[1717599036885,2.138,173.06,173.01,0.4]
[1717599037484,2.1379,173.07,173.01,0.4]
[1717599037657,2.1379,173.07,173.02,2.1384]
[1717599038060,2.1379,173.06,173.01,2.5385]
[1717599038872,2.1379,173.06,173.01,0.4]
[1717599039257,2.1381,173.05,173.01,0.4]
[1717599040384,2.138,173.06,173.01,0.4]
[1717599040577,2.138,173.06,173.01,2.5385]
[1717599041787,2.138,173.06,173.01,0.4]
[1717599042477,2.138,173.06,173.01,2.5386]
[1717599044379,2.138,173.06,173.01,2.5385]
[1717599044590,2.3079,173.07,173.02,2.1384]
[1717599044794,0.17,173.06,173.01,0.4]
[1717599044967,2.1381,173.05,173.01,0.4]
[1717599045290,2.308,173.06,173.01,2.5385]
[1717599045498,0.17,173.05,173.01,2.5385]
[1717599046404,0.17,173.05,173.02,2.1384]
[1717599046698,0.34,173.06,173.02,2.1384]
[1717599047004,2.1377,173.08,173.03,2.1383]
[1717599047162,20.0,173.1,173.03,2.1383]
[1717599047364,2.1377,173.08,173.03,2.1383]
[1717599047762,2.1377,173.08,173.01,0.4]
[1717599047991,2.1377,173.08,173.02,2.1384]
[1717599048288,2.1377,173.08,173.03,2.1383]
[1717599048465,2.1376,173.09,173.03,2.1383]
[1717599048668,2.1377,173.08,173.03,2.1383]
[1717599049092,2.1377,173.08,173.02,2.1384]
[1717599049471,2.1378,173.07,173.02,2.1384]
[1717599050104,2.1377,173.08,173.02,8.5651]
[1717599050285,2.1377,173.08,173.03,45.0]
[1717599050991,2.1379,173.07,173.03,45.0]
[1717599051817,2.1377,173.08,173.02,6.4267]
[1717599051994,2.138,173.06,173.02,6.4267]
[1717599052468,2.3079,173.07,173.02,6.4267]
[1717599052869,2.3079,173.07,173.02,8.5651]
[1717599053273,2.1377,173.08,173.03,2.1383]
[1717599053493,2.1377,173.08,173.03,53.4613]
[1717599055401,2.1377,173.08,173.04,6.0874]
[1717599055601,2.1374,173.11,173.06,2.1379]
[1717599055800,2.1375,173.1,173.05,47.138]
[1717599055978,2.1374,173.11,173.06,2.1379]
[1717599056179,2.1374,173.11,173.06,47.1379]
[1717599056719,2.1375,173.1,173.06,45.0]
[1717599057084,2.1376,173.09,173.06,45.0]
[1717599057706,2.1375,173.1,173.06,45.0]
[1717599058184,2.1376,173.09,173.06,45.0]
[1717599058500,2.1375,173.1,173.06,45.0]
[1717599060687,2.1373,173.11,173.06,53.2637]
[1717599060908,4.2741,173.14,173.07,6.1258]
[1717599061091,2.1371,173.13,173.08,2.1377]
[1717599061289,2.1371,173.13,173.08,8.2635]
[1717599061689,2.1371,173.13,173.09,45.0]
[1717599062308,2.1371,173.13,173.09,51.0445]
[1717599062496,2.1371,173.13,173.1,6.0445]
[1717599062817,2.137,173.14,173.1,6.0445]
[1717599063108,14.9564,173.17,173.1,6.0445]
[1717599063109,2.1369,173.15,173.1,6.0445]
[1717599063687,8.5452,173.2,173.11,8.4126]
[1717599063984,2.1367,173.16,173.12,45.0]
[1717599064324,2.1367,173.16,173.12,51.2753]
[1717599066593,2.1367,173.16,173.11,2.1373]
[1717599067295,2.1367,173.16,173.11,8.315]
[1717599067594,2.1367,173.16,173.12,45.0]
[1717599069120,2.1366,173.17,173.12,47.1372]
[1717599069908,2.1366,173.17,173.12,53.7296]
[1717599071836,2.1367,173.16,173.12,51.5924]
[1717599072193,2.1368,173.15,173.12,45.0]
[1717599072510,2.1368,173.15,173.1,8.4038]
[1717599072708,2.1368,173.15,173.11,45.0]
[1717599073015,2.1367,173.16,173.11,47.1373]
[1717599073394,2.1367,173.16,173.12,2.1372]
[1717599073907,2.1367,173.16,173.11,47.1372]
[1717599074104,2.1366,173.17,173.12,2.1372]
[1717599075904,0.5327606,173.17,173.06,8.5519]
[1717599076103,2.1371,173.14,173.06,19.2417]
[1717599076414,2.6698606,173.14,173.09,2.1375]
[1717599076609,2.6698606,173.14,173.07,4.2756]
[1717599076610,0.17,173.13,173.1,2.1374]
[1717599077111,2.1371,173.14,173.1,2.1374]
[1717599077506,2.3069,173.15,173.1,2.1374]
[1717599078123,2.137,173.14,173.1,2.1374]
[1717599079039,2.137,173.14,173.09,47.1375]
[1717599080315,2.1371,173.13,173.09,2.1375]
[1717599080913,2.1371,173.13,173.08,47.1376]
[1717599081913,2.1371,173.13,173.09,2.1375]
[1717599083628,0.34,173.12,173.04,4.2763]
[1717599083832,0.34,173.12,173.06,2.1379]
[1717599083833,2.1375,173.1,173.06,2.1379]
[1717599084316,2.1376,173.09,173.05,2.138]
[1717599084723,2.1375,173.1,173.06,2.1379]
[1717599085320,2.1374,173.11,173.07,2.1378]
[1717599085946,2.1375,173.1,173.06,2.1379]
[1717599086151,24.6145,173.12,173.06,2.1379]
[1717599086152,2.1374,173.11,173.06,2.1379]
[1717599087249,0.5327606,173.1,173.06,2.1379]
[1717599088173,0.5327606,173.1,173.05,47.138]
[1717599088331,2.4776,173.09,173.04,2.1382]
[1717599088530,0.5327606,173.08,173.04,2.1382]
[1717599088724,0.34,173.07,173.03,2.1383]
[1717599088949,0.34,173.07,173.01,4.6771]
[1717599088950,8.21,173.06,173.01,0.4]
[1717599089257,0.5327606,173.05,173.01,0.4]
[1717599089560,6.072,173.06,173.01,0.4]
[1717599089773,0.34,173.05,173.01,2.5385]
[1717599089926,6.1414,173.03,173.01,0.4]
[1717599090263,8.8125606,173.03,173.01,0.4]
[1717599090446,2.6711606,173.03,173.01,0.4]
[1717599090644,0.5327606,173.03,173.01,0.4]
[1717599090963,2.1383,173.04,173.01,0.4]
[1717599091166,2.3083,173.03,173.01,0.4]
[1717599091330,0.17,173.03,173.01,0.4]
[1717599091760,20.17,173.04,173.01,0.4]
[1717599091957,2.3082,173.04,173.01,0.4]
[1717599092452,2.1383,173.03,173.01,0.4]
[1717599092752,0.5327606,173.02,173.01,0.4]
[1717599093544,0.17,173.04,173.01,0.4]
[1717599093545,2.3083,173.04,173.01,0.4]
[1717599095858,2.1384,173.02,173.01,0.4]
[1717599096036,2.3084,173.02,173.01,0.4]
[1717599096237,2.4784,173.02,173.01,0.4]
[1717599096452,30.5605,173.02,173.01,0.4]
[1717599096667,63.9240606,173.02,173.01,0.4]
[1717599096959,2.139,172.98,172.91,4.6795]
[1717599097177,2.4789,172.99,172.93,2.1395]
[1717599097457,2.1389,172.98,172.93,2.1395]
[1717599097661,0.34,172.99,172.93,2.1395]
[1717599097952,2.1391,172.97,172.92,2.1396]
[1717599098756,2.139,172.98,172.92,2.1396]
[1717599099063,0.17,172.97,172.93,2.1395]
[1717599099368,2.6717606,172.98,172.93,2.1395]
[1717599099763,0.7027606,172.97,172.91,0.4]
[1717599100064,0.17,172.96,172.92,2.1396]
[1717599100360,0.17,172.96,172.93,2.1395]
[1717599100543,0.34,172.97,172.93,2.1395]
[1717599101949,2.4791,172.97,172.91,0.4]
[1717599102271,0.5327606,172.96,172.91,2.5397]
[1717599102464,0.5327606,172.96,172.91,0.4]
[1717599102642,0.34,172.95,172.91,0.4]
[1717599102844,0.17,172.95,172.91,0.4]
[1717599103054,20.0,172.97,172.92,2.1396]
[1717599103571,0.34,172.98,172.92,2.1396]
[1717599104072,2.479,172.98,172.91,2.5398]
[1717599104246,0.34,172.98,172.91,2.5398]
[1717599104440,2.1391,172.97,172.91,0.4]
[1717599104640,0.34,172.96,172.91,0.4]
[1717599105562,2.4792,172.96,172.91,0.4]
[1717599106545,0.34,172.96,172.91,2.5398]
[1717599107369,0.34,172.97,172.91,2.5398]
[1717599107544,2.4791,172.97,172.91,2.5398]
[1717599107739,2.1393,172.96,172.91,0.4]
[1717599107939,0.34,172.95,172.91,0.4]
[1717599109568,25.2656,172.92,172.91,0.4]
[1717599109773,8.9521,172.92,172.91,0.4]
[1717599110074,3.0124606,172.92,172.91,0.4]
[1717599110277,3.0124606,172.92,172.81,0.4]
[1717599110278,23.9986606,172.92,172.81,0.4]
[1717599110570,2.1401,172.89,172.83,2.1408]
[1717599112461,2.4798,172.91,172.85,2.1405]
[1717599112660,0.5327606,172.94,172.81,15.5961]
[1717599112851,2.1393,172.95,172.86,6.421]
[1717599113054,4.2782,172.97,172.87,49.2806]
[1717599113258,2.1394,172.95,172.89,2.14]
[1717599113586,2.1392,172.96,172.9,2.1399]
[1717599115155,2.3091,172.97,172.91,2.1398]
[1717599115542,2.3091,172.97,172.88,6.4205]
[1717599115754,2.3091,172.97,172.91,2.1397]
[1717599116379,2.1389,172.98,172.92,2.1396]
[1717599116562,2.1391,172.97,172.91,2.1397]
[1717599116763,2.139,172.98,172.92,2.1396]
[1717599117073,2.1391,172.97,172.91,47.1397]
[1717599117370,2.1391,172.97,172.91,2.1397]
[1717599117577,2.139,172.98,172.92,2.1396]
[1717599117870,2.139,172.98,172.92,47.1396]
[1717599118253,2.139,172.98,172.93,2.1395]
[1717599118575,2.139,172.98,172.93,8.5889]
[1717599118753,2.139,172.98,172.93,6.4494]
[1717599119557,2.1391,172.97,172.93,6.4494]
[1717599119866,2.1394,172.95,172.91,45.0]
[1717599120045,0.5327606,172.94,172.89,2.14]
[1717599120247,2.6721606,172.94,172.89,53.5894]
[1717599120474,19.252,172.97,172.89,53.5894]
[1717599120778,2.1394,172.95,172.9,2.1399]
[1717599120951,2.1394,172.95,172.9,47.1399]
[1717599121649,0.17,172.98,172.9,45.0]
[1717599121954,2.1391,172.97,172.92,2.1396]
[1717599122277,20.34,172.98,172.9,45.0]
[1717599122278,2.1392,172.96,172.91,47.1397]
[1717599122454,2.1392,172.96,172.91,2.1397]
[1717599122781,2.1392,172.96,172.91,53.5747]
[1717599123489,2.1393,172.95,172.91,51.435]
[1717599124491,2.1392,172.96,172.91,53.5748]
[1717599124868,2.479,172.98,172.91,51.435]
[1717599125071,2.1391,172.97,172.92,2.1396]
[1717599125272,2.1391,172.97,172.92,53.7323]
[1717599127077,2.1392,172.96,172.92,45.0]
[1717599127289,2.1391,172.97,172.92,47.1397]
[1717599128407,2.139,172.98,172.93,2.1395]
[1717599128606,2.139,172.98,172.93,53.1408]
[1717599128971,2.1389,172.99,172.93,47.1395]
[1717599129173,2.1389,172.99,172.93,2.1395]
[1717599129893,2.4787,173.0,172.94,2.1394]
[1717599130095,2.1388,172.99,172.93,2.1395]
[1717599133871,0.34,173.0,172.92,45.0]
[1717599134076,2.139,172.98,172.92,45.0]
[1717599134288,13.1727,173.0,172.89,10.7002]
[1717599134497,2.1391,172.97,172.91,2.1397]
[1717599134674,0.5327606,172.96,172.92,2.1397]
[1717599134874,2.479,172.98,172.92,2.1397]
[1717599135077,2.479,172.98,172.9,65.0]
[1717599135078,0.34,172.98,172.93,2.1395]
[1717599135288,0.17,172.98,172.93,2.1395]
[1717599135673,2.1387,173.0,172.94,2.1394]
[1717599135880,0.17,172.99,172.94,2.1394]
[1717599136087,2.3088,172.99,172.93,2.1395]
[1717599136481,0.17,172.99,172.94,2.1394]
[1717599136680,2.3088,172.99,172.93,2.1395]
[1717599137399,2.6717606,172.98,172.92,47.1396]
[1717599137575,0.17,172.99,172.93,45.0]
[1717599137778,0.17,172.99,172.93,2.1395]
[1717599137779,2.1389,172.99,172.93,2.1395]
[1717599137995,0.7027606,172.98,172.93,2.1395]
[1717599138188,2.8416606,172.98,172.92,2.1396]
[1717599138602,2.8416606,172.98,172.91,45.0]
[1717599138603,0.17,172.98,172.93,2.1395]
[1717599138793,0.17,172.98,172.94,2.1394]
[1717599138998,0.34,172.99,172.94,2.1394]
[1717599140505,2.4788,172.99,172.93,2.1395]
[1717599140878,2.1392,172.96,172.9,2.1399]
[1717599141206,0.5327606,172.95,172.9,2.1399]
[1717599143091,2.4791,172.97,172.91,2.1398]
[1717599143986,11.5682606,172.97,172.86,4.2807]
[1717599144192,2.1394,172.95,172.89,2.14]
[1717599144414,0.34,172.94,172.89,2.14]
[1717599144626,2.4794,172.94,172.88,2.1401]
[1717599144788,2.4795,172.94,172.88,2.1401]
[1717599145110,0.34,172.94,172.89,2.14]
[1717599145429,2.1398,172.91,172.82,12.8456]
[1717599145585,2.3099,172.9,172.84,2.1406]
[1717599145914,0.17,172.89,172.84,2.1406]
[1717599146410,0.17,172.9,172.84,2.1406]
[1717599146411,0.34,172.9,172.84,2.1406]
[1717599146792,0.34,172.9,172.85,2.1405]
[1717599147515,2.4799,172.9,172.84,2.1406]
[1717599147819,3.0126606,172.9,172.84,2.1406]
[1717599148000,0.34,172.9,172.84,2.1406]
[1717599148307,0.34,172.9,172.85,2.1405]
[1717599149104,0.34,172.9,172.86,2.1404]
[1717599149294,0.34,172.91,172.86,2.1404]
[1717599150387,2.1397,172.92,172.86,2.1404]
[1717599151814,2.3096,172.93,172.87,2.1403]
[1717599152693,2.3096,172.93,172.88,2.1401]
[1717599152694,0.17,172.93,172.88,2.1401]
[1717599152895,2.3096,172.93,172.87,2.1402]
[1717599154116,2.1397,172.92,172.86,2.1403]
[1717599154322,2.1397,172.92,172.85,45.0]
[1717599154506,2.3096,172.93,172.87,2.1403]
[1717599155719,2.8423606,172.93,172.87,2.1403]
[1717599156014,2.3096,172.93,172.87,2.1403]
[1717599156217,2.6724606,172.92,172.86,2.1404]
[1717599156617,2.6724606,172.92,172.87,2.1403]
[1717599157219,0.5327606,172.92,172.87,2.1403]
[1717599157909,0.34,172.91,172.87,2.1403]
[1717599158109,0.17,172.91,172.86,2.1404]
[1717599158294,0.17,172.9,172.86,2.1404]
[1717599158494,2.3098,172.91,172.82,10.7046]
[1717599158692,0.17,172.92,172.83,71.4224]
[1717599158934,2.1397,172.92,172.86,2.1404]
[1717599159144,0.34,172.93,172.87,2.1403]
[1717599159145,0.17,172.91,172.87,2.1403]
[1717599159721,0.17,172.92,172.87,2.1403]
[1717599160302,2.3097,172.92,172.86,2.1403]
[1717599160501,8.444,172.92,172.87,2.1403]
[1717599160708,8.9767606,172.92,172.87,2.1403]
[1717599161242,2.3098,172.91,172.85,2.1405]
[1717599161442,0.7027606,172.9,172.85,2.1405]
[1717599161631,0.7027606,172.9,172.74,12.598]
[1717599161632,0.7027606,172.9,172.81,4.682]
[1717599161933,0.17,172.89,172.82,49.2818]
[1717599162340,0.17,172.89,172.85,2.1405]
[1717599162542,0.7027606,172.89,172.85,2.1405]
[1717599163029,0.17,172.89,172.85,2.1405]
[1717599163241,6.9681,172.9,172.85,2.1405]
[1717599165315,6.9681,172.9,172.86,2.1404]
[1717599165534,0.34,172.9,172.87,2.1403]
[1717599165840,0.34,172.91,172.87,2.1403]
[1717599166050,16.0576,172.92,172.88,2.1401]
[1717599166334,6.355,172.94,172.89,2.14]
[1717599166552,2.1392,172.96,172.9,2.1399]
[1717599167048,2.1392,172.96,172.88,12.841]
[1717599167220,2.1392,172.96,172.9,2.1399]
[1717599168318,0.34,172.95,172.9,2.1399]
[1717599170617,2.4793,172.95,172.89,2.14]
[1717599171432,2.1396,172.93,172.88,45.0]
[1717599171640,0.8727606,172.95,172.88,2.1401]
[1717599171819,2.1395,172.94,172.88,2.1401]
[1717599172141,0.17,172.93,172.88,2.1401]
[1717599173146,22.2006606,172.93,172.88,2.1401]
[1717599173350,24.3402606,172.93,172.88,2.1401]
[1717599174350,22.2006606,172.93,172.88,2.1401]
[1717599175234,16.0700606,172.93,172.87,2.1402]
[1717599175461,8.6613,172.92,172.87,2.1402]
[1717599175641,0.8727606,172.91,172.87,2.1402]
[1717599175830,0.34,172.91,172.88,2.1402]
[1717599176751,6.5216,172.92,172.88,2.1402]
[1717599177133,6.5216,172.92,172.89,2.14]
[1717599177350,15.5373,172.93,172.89,2.14]
[1717599177541,0.34,172.92,172.89,2.14]
[1717599178155,0.34,172.92,172.88,2.1401]
[1717599179528,0.34,172.92,172.87,2.1402]
[1717599179871,0.34,172.92,172.88,2.1402]
[1717599181852,0.17,172.92,172.88,2.1402]
[1717599182059,2.1393,172.95,172.88,4.2803]
[1717599182234,0.17,172.94,172.88,4.2803]
[1717599182434,2.3094,172.94,172.89,2.14]
[1717599182654,8.472,172.96,172.91,2.1397]
[1717599183045,2.1393,172.95,172.9,2.1399]
[1717599183229,8.472,172.96,172.9,2.1399]
[1717599183558,8.472,172.96,172.91,2.1398]
[1717599184153,0.34,172.95,172.91,2.1398]
[1717599184545,0.34,172.95,172.89,45.0]
[1717599184546,0.34,172.95,172.9,2.1398]
[1717599185061,2.4793,172.95,172.9,2.1398]
[1717599186231,0.34,172.95,172.9,2.1398]
[1717599187673,2.4793,172.95,172.9,2.1398]
[1717599187857,0.17,172.95,172.91,2.1398]
[1717599188150,8.472,172.96,172.91,2.1398]
[1717599188359,2.4791,172.97,172.92,2.1397]
[1717599188542,0.34,172.96,172.92,2.1397]
[1717599189359,0.34,172.96,172.91,2.1397]
[1717599189545,2.4792,172.96,172.91,2.1397]
[1717599190055,2.1393,172.95,172.9,2.1399]
[1717599191255,2.4793,172.96,172.91,2.1398]
[1717599191738,2.1393,172.95,172.9,2.1398]
[1717599191938,2.4792,172.96,172.91,2.1398]
[1717599193759,2.1391,172.97,172.92,2.1397]
[1717599195140,0.34,172.98,172.94,2.1394]
[1717599195341,0.34,172.98,172.91,55.699]
[1717599195342,2.479,172.98,172.93,2.1395]
[1717599195755,2.479,172.98,172.91,55.699]
[1717599195756,6.6291,173.0,172.92,10.6984]
[1717599195959,2.1388,172.99,172.94,2.1394]
[1717599196153,8.7678,173.0,172.95,2.1393]
[1717599197057,2.1388,172.99,172.94,2.1394]
[1717599197960,6.6291,173.0,172.95,2.1393]
[1717599199648,6.6291,173.0,172.96,2.1392]
[1717599199849,2.4786,173.01,172.96,2.1392]